[Event "Titled Tuesday Blitz March 22 Early 2022"]
[White "Smirnov, Pavel"]
[Black "Danilenko, Dmitriy"]
[WhiteFideId "4123425"]
[BlackFideId "14120844"]
[WhiteElo "2545"]
[BlackElo "2606"]
[Result "1-0"]
[Round "06"]
[TimeControl "180+1"]
[Date "2022.03.22"]
[WhiteClock "0:00:17"]
[BlackClock "0:00:28"]

1. d4 {[%clk 0:02:32]}  f5 {[%clk 0:03:00]} 2. g3 {[%clk 0:02:31]}  Nf6 {[%clk 0:03:00]} 3. Bg2 {[%clk 0:02:32]}  g6 {[%clk 0:03:01]} 4. Nf3 {[%clk 0:02:32]}  Bg7 {[%clk 0:03:02]} 5. O-O {[%clk 0:02:33]}  O-O {[%clk 0:03:02]} 6. c4 {[%clk 0:02:34]}  d6 {[%clk 0:03:03]} 7. Nc3 {[%clk 0:02:34]}  Qe8 {[%clk 0:03:04]} 8. b3 {[%clk 0:02:34]}  e5 {[%clk 0:03:04]} 9. dxe5 {[%clk 0:02:33]}  dxe5 {[%clk 0:03:05]} 10. e4 {[%clk 0:02:33]}  f4 {[%clk 0:03:04]} 11. Ba3 {[%clk 0:02:24]}  Rf7 {[%clk 0:03:04]} 12. gxf4 {[%clk 0:02:09]}  Nh5 {[%clk 0:02:53]} 13. fxe5 {[%clk 0:01:58]}  Nc6 {[%clk 0:02:51]} 14. Nd5 {[%clk 0:01:51]}  h6 {[%clk 0:02:33]} 15. Bb2 {[%clk 0:01:42]}  Nf4 {[%clk 0:02:25]} 16. Nf6+ {[%clk 0:01:33]}  Bxf6 {[%clk 0:02:22]} 17. exf6 {[%clk 0:01:33]}  Nxg2 {[%clk 0:02:21]} 18. Kxg2 {[%clk 0:01:32]}  Qxe4 {[%clk 0:02:18]} 19. Re1 {[%clk 0:01:27]}  Qg4+ {[%clk 0:02:17]} 20. Kh1 {[%clk 0:01:26]}  Bf5 {[%clk 0:02:16]} 21. Nd4 {[%clk 0:00:46]}  Rxf6 {[%clk 0:00:45]} 22. Nxf5 {[%clk 0:00:32]}  Qxd1 {[%clk 0:00:42]} 23. Nxh6+ {[%clk 0:00:29]}  Kh7 {[%clk 0:00:41]} 24. Raxd1 {[%clk 0:00:27]}  Rxf2 {[%clk 0:00:42]} 25. Bc1 {[%clk 0:00:24]}  g5 {[%clk 0:00:41]} 26. Bxg5 {[%clk 0:00:21]}  Rxa2 {[%clk 0:00:40]} 27. h4 {[%clk 0:00:20]}  Kg6 {[%clk 0:00:38]} 28. Re6+ {[%clk 0:00:19]}  Kh5 {[%clk 0:00:39]} 29. Rd5 {[%clk 0:00:19]}  Nb4 {[%clk 0:00:37]} 30. Rf5 {[%clk 0:00:18]}  Ra6 {[%clk 0:00:28]} 31. Bd8# {[%clk 0:00:17]} 1-0


[Site "https://www.chess.com"]

[Event "Titled Tuesday Blitz March 22 Early 2022"]
[White "Suarez Uriel, Adrian"]
[Black "Begunov, Konstantin"]
[WhiteFideId "22230874"]
[BlackFideId "4118510"]
[WhiteElo "2316"]
[BlackElo "2262"]
[Result "1-0"]
[Round "06"]
[TimeControl "180+1"]
[Date "2022.03.22"]
[WhiteClock "0:01:06"]
[BlackClock "0:00:06"]

1. d4 {[%clk 0:03:00]}  d5 {[%clk 0:02:59]} 2. Nf3 {[%clk 0:02:58]}  c6 {[%clk 0:02:59]} 3. c4 {[%clk 0:02:57]}  Nf6 {[%clk 0:02:59]} 4. Nc3 {[%clk 0:02:57]}  dxc4 {[%clk 0:02:59]} 5. Ne5 {[%clk 0:02:56]}  b5 {[%clk 0:02:58]} 6. a4 {[%clk 0:02:56]}  b4 {[%clk 0:02:51]} 7. Nb1 {[%clk 0:02:53]}  Ba6 {[%clk 0:02:44]} 8. e3 {[%clk 0:02:53]}  e6 {[%clk 0:02:35]} 9. Nxc4 {[%clk 0:02:47]}  c5 {[%clk 0:02:20]} 10. Qf3 {[%clk 0:02:46]}  Qd5 {[%clk 0:02:11]} 11. Qxd5 {[%clk 0:02:30]}  exd5 {[%clk 0:02:09]} 12. Ne5 {[%clk 0:02:29]}  Bxf1 {[%clk 0:02:07]} 13. Kxf1 {[%clk 0:02:30]}  c4 {[%clk 0:02:00]} 14. Ke2 {[%clk 0:02:27]}  Nbd7 {[%clk 0:01:57]} 15. f4 {[%clk 0:02:22]}  Ne4 {[%clk 0:01:53]} 16. Nd2 {[%clk 0:02:22]}  Ndf6 {[%clk 0:01:51]} 17. g4 {[%clk 0:02:12]}  Nxd2 {[%clk 0:01:41]} 18. Bxd2 {[%clk 0:02:12]}  a5 {[%clk 0:01:42]} 19. h4 {[%clk 0:01:56]}  Bd6 {[%clk 0:01:41]} 20. Nf3 {[%clk 0:01:47]}  Nxg4 {[%clk 0:01:38]} 21. h5 {[%clk 0:01:41]}  Nf6 {[%clk 0:01:33]} 22. h6 {[%clk 0:01:41]}  g6 {[%clk 0:01:29]} 23. Be1 {[%clk 0:01:41]}  Ne4 {[%clk 0:01:26]} 24. Bh4 {[%clk 0:01:41]}  Kd7 {[%clk 0:01:10]} 25. Rhg1 {[%clk 0:01:38]}  Rae8 {[%clk 0:00:57]} 26. Raf1 {[%clk 0:01:35]}  Re6 {[%clk 0:00:48]} 27. Ne5+ {[%clk 0:01:35]}  Bxe5 {[%clk 0:00:44]} 28. fxe5 {[%clk 0:01:36]}  Rf8 {[%clk 0:00:40]} 29. Rf4 {[%clk 0:01:35]}  c3 {[%clk 0:00:26]} 30. b3 {[%clk 0:01:33]}  f5 {[%clk 0:00:19]} 31. exf6 {[%clk 0:01:32]}  Nd6 {[%clk 0:00:18]} 32. Kd3 {[%clk 0:01:27]}  Nf5 {[%clk 0:00:17]} 33. Rxf5 {[%clk 0:01:26]}  gxf5 {[%clk 0:00:18]} 34. Rg7+ {[%clk 0:01:26]}  Kd6 {[%clk 0:00:18]} 35. Rxh7 {[%clk 0:01:26]}  Rfxf6 {[%clk 0:00:16]} 36. Bxf6 {[%clk 0:01:26]}  Rxf6 {[%clk 0:00:17]} 37. Ra7 {[%clk 0:01:25]}  Rf8 {[%clk 0:00:15]} 38. Rxa5 {[%clk 0:01:25]}  f4 {[%clk 0:00:15]} 39. exf4 {[%clk 0:01:23]}  Rxf4 {[%clk 0:00:16]} 40. Ra6+ {[%clk 0:01:23]}  Kd7 {[%clk 0:00:16]} 41. h7 {[%clk 0:01:23]}  Rf3+ {[%clk 0:00:16]} 42. Ke2 {[%clk 0:01:23]}  Rh3 {[%clk 0:00:17]} 43. Rb6 {[%clk 0:01:22]}  Kc7 {[%clk 0:00:16]} 44. Rxb4 {[%clk 0:01:23]}  Rxh7 {[%clk 0:00:16]} 45. Rb5 {[%clk 0:01:23]}  Kd6 {[%clk 0:00:15]} 46. Rc5 {[%clk 0:01:23]}  Rh4 {[%clk 0:00:15]} 47. Kd3 {[%clk 0:01:23]}  Rh3+ {[%clk 0:00:14]} 48. Kc2 {[%clk 0:01:23]}  Rh4 {[%clk 0:00:11]} 49. Kxc3 {[%clk 0:01:22]}  Rh3+ {[%clk 0:00:12]} 50. Kb4 {[%clk 0:01:22]}  Rd3 {[%clk 0:00:12]} 51. Rc1 {[%clk 0:01:20]}  Rxd4+ {[%clk 0:00:13]} 52. Kb5 {[%clk 0:01:21]}  Rd2 {[%clk 0:00:11]} 53. a5 {[%clk 0:01:20]}  d4 {[%clk 0:00:11]} 54. a6 {[%clk 0:01:18]}  Ra2 {[%clk 0:00:11]} 55. b4 {[%clk 0:01:11]}  d3 {[%clk 0:00:11]} 56. Rd1 {[%clk 0:01:10]}  d2 {[%clk 0:00:11]} 57. Kb6 {[%clk 0:01:10]}  Kd5 {[%clk 0:00:11]} 58. b5 {[%clk 0:01:10]}  Kc4 {[%clk 0:00:11]} 59. a7 {[%clk 0:01:07]}  Kb4 {[%clk 0:00:07]} 60. Rxd2 {[%clk 0:01:07]}  Rxd2 {[%clk 0:00:05]} 61. a8=Q {[%clk 0:01:07]}  Rd6+ {[%clk 0:00:06]} 62. Qc6 {[%clk 0:01:06]} 1-0


[Site "https://www.chess.com"]

[Event "Titled Tuesday Blitz March 22 Early 2022"]
[White "Svane, Rasmus"]
[Black "Gaehwiler, Gabriel"]
[WhiteFideId "4657101"]
[BlackFideId "1314530"]
[WhiteElo "2645"]
[BlackElo "2383"]
[Result "1-0"]
[Round "06"]
[TimeControl "180+1"]
[Date "2022.03.22"]
[WhiteClock "0:00:11"]
[BlackClock "0:00:02"]

1. Nf3 {[%clk 0:02:57]}  Nf6 {[%clk 0:02:59]} 2. g3 {[%clk 0:02:57]}  b6 {[%clk 0:03:00]} 3. Bg2 {[%clk 0:02:58]}  Bb7 {[%clk 0:03:00]} 4. O-O {[%clk 0:02:58]}  g6 {[%clk 0:03:00]} 5. d4 {[%clk 0:02:57]}  Bg7 {[%clk 0:03:00]} 6. c4 {[%clk 0:02:57]}  O-O {[%clk 0:03:00]} 7. Re1 {[%clk 0:02:57]}  a5 {[%clk 0:02:50]} 8. Bf4 {[%clk 0:02:55]}  Qc8 {[%clk 0:02:37]} 9. Nc3 {[%clk 0:02:47]}  Ne4 {[%clk 0:02:36]} 10. Nd5 {[%clk 0:02:47]}  Bxd5 {[%clk 0:01:55]} 11. cxd5 {[%clk 0:02:48]}  c5 {[%clk 0:01:37]} 12. dxc6 {[%clk 0:02:26]}  Nxc6 {[%clk 0:01:35]} 13. Rc1 {[%clk 0:02:26]}  Qa6 {[%clk 0:01:29]} 14. Ne5 {[%clk 0:02:25]}  Bxe5 {[%clk 0:01:12]} 15. Bxe5 {[%clk 0:02:02]}  f5 {[%clk 0:00:56]} 16. Qb3+ {[%clk 0:01:14]}  Rf7 {[%clk 0:00:55]} 17. Qe3 {[%clk 0:01:08]}  Raf8 {[%clk 0:00:41]} 18. Bf4 {[%clk 0:00:52]}  Nb4 {[%clk 0:00:31]} 19. Bxe4 {[%clk 0:00:52]}  fxe4 {[%clk 0:00:31]} 20. Qxe4 {[%clk 0:00:53]}  Nxa2 {[%clk 0:00:23]} 21. Rc7 {[%clk 0:00:53]}  Qb5 {[%clk 0:00:22]} 22. Qb7 {[%clk 0:00:39]}  Qxb2 {[%clk 0:00:08]} 23. Rxd7 {[%clk 0:00:35]}  Nc3 {[%clk 0:00:07]} 24. Kf1 {[%clk 0:00:31]}  Qb3 {[%clk 0:00:05]} 25. Rxe7 {[%clk 0:00:26]}  Qd5 {[%clk 0:00:01]} 26. Rxf7 {[%clk 0:00:12]}  Rxf7 {[%clk 0:00:01]} 27. Qxd5 {[%clk 0:00:11]}  Nxd5 {[%clk 0:00:02]} 28. Be5 {[%clk 0:00:11]}  a4 {[%clk 0:00:02]} 29. e4 {[%clk 0:00:12]}  Nc3 {[%clk 0:00:03]} 30. d5 {[%clk 0:00:11]}  Nb5 {[%clk 0:00:02]} 31. Rb1 {[%clk 0:00:11]} 1-0


[Site "https://www.chess.com"]

[Event "Titled Tuesday Blitz March 22 Early 2022"]
[White "Tristan, Leonardo"]
[Black "Pajeken, Jakob Leon"]
[WhiteFideId "113816"]
[BlackFideId "12942839"]
[WhiteElo "2404"]
[BlackElo "2351"]
[Result "0-1"]
[Round "06"]
[TimeControl "180+1"]
[Date "2022.03.22"]
[WhiteClock "0:00:01"]
[BlackClock "0:00:21"]

1. d4 {[%clk 0:03:00]}  d5 {[%clk 0:02:58]} 2. Nf3 {[%clk 0:03:01]}  Nf6 {[%clk 0:02:58]} 3. Bf4 {[%clk 0:03:01]}  e6 {[%clk 0:02:56]} 4. e3 {[%clk 0:03:01]}  Bd6 {[%clk 0:02:57]} 5. Bg3 {[%clk 0:03:02]}  O-O {[%clk 0:02:58]} 6. c4 {[%clk 0:03:02]}  b6 {[%clk 0:02:56]} 7. cxd5 {[%clk 0:03:02]}  exd5 {[%clk 0:02:56]} 8. Nc3 {[%clk 0:03:02]}  Ba6 {[%clk 0:02:54]} 9. Bxa6 {[%clk 0:02:55]}  Nxa6 {[%clk 0:02:55]} 10. Rc1 {[%clk 0:02:40]}  Nb4 {[%clk 0:02:31]} 11. Bxd6 {[%clk 0:02:32]}  Qxd6 {[%clk 0:02:28]} 12. a3 {[%clk 0:02:14]}  Nc6 {[%clk 0:02:25]} 13. Nb5 {[%clk 0:02:10]}  Qd7 {[%clk 0:02:18]} 14. Qc2 {[%clk 0:02:01]}  Na5 {[%clk 0:01:55]} 15. Nxc7 {[%clk 0:01:14]}  Rac8 {[%clk 0:01:53]} 16. Ne5 {[%clk 0:01:15]}  Qd6 {[%clk 0:01:43]} 17. O-O {[%clk 0:01:15]}  Nd7 {[%clk 0:01:01]} 18. b4 {[%clk 0:00:52]}  Nc4 {[%clk 0:00:53]} 19. Nxc4 {[%clk 0:00:51]}  Qxc7 {[%clk 0:00:50]} 20. Ne5 {[%clk 0:00:37]}  Qxc2 {[%clk 0:00:48]} 21. Rxc2 {[%clk 0:00:38]}  Rxc2 {[%clk 0:00:44]} 22. Nxd7 {[%clk 0:00:38]}  Rfc8 {[%clk 0:00:44]} 23. Ne5 {[%clk 0:00:39]}  R8c3 {[%clk 0:00:36]} 24. a4 {[%clk 0:00:35]}  f6 {[%clk 0:00:35]} 25. Nd7 {[%clk 0:00:28]}  Rc8 {[%clk 0:00:26]} 26. g4 {[%clk 0:00:13]}  R2c7 {[%clk 0:00:25]} 27. Nc5 {[%clk 0:00:13]}  bxc5 {[%clk 0:00:24]} 28. bxc5 {[%clk 0:00:13]}  Rb7 {[%clk 0:00:24]} 29. Kg2 {[%clk 0:00:13]}  Rb4 {[%clk 0:00:24]} 30. Ra1 {[%clk 0:00:13]}  Rcb8 {[%clk 0:00:24]} 31. Kg3 {[%clk 0:00:12]}  Rc4 {[%clk 0:00:25]} 32. a5 {[%clk 0:00:12]}  Rbb4 {[%clk 0:00:24]} 33. a6 {[%clk 0:00:12]}  Kf7 {[%clk 0:00:24]} 34. Kf4 {[%clk 0:00:11]}  g5+ {[%clk 0:00:22]} 35. Kf5 {[%clk 0:00:08]}  Rxd4 {[%clk 0:00:20]} 36. exd4 {[%clk 0:00:03]}  Rxd4 {[%clk 0:00:20]} 37. Ra4 {[%clk 0:00:02]}  Rxa4 {[%clk 0:00:20]} 38. f4 {[%clk 0:00:01]}  Rxf4# {[%clk 0:00:21]} 0-1


[Site "https://www.chess.com"]

[Event "Titled Tuesday Blitz March 22 Early 2022"]
[White "Tsyhanchuk, Stanislav"]
[Black "Jannatul, Ferdous"]
[WhiteFideId "13505130"]
[BlackFideId "10212590"]
[WhiteElo "2078"]
[BlackElo "1707"]
[Result "1-0"]
[Round "06"]
[TimeControl "180+1"]
[Date "2022.03.22"]
[WhiteClock "0:01:25"]
[BlackClock "0:01:37"]

1. e4 {[%clk 0:03:00]}  c5 {[%clk 0:02:59]} 2. Nf3 {[%clk 0:03:00]}  Nc6 {[%clk 0:03:00]} 3. Bb5 {[%clk 0:03:00]}  d6 {[%clk 0:02:53]} 4. O-O {[%clk 0:02:59]}  Nf6 {[%clk 0:02:51]} 5. Re1 {[%clk 0:02:59]}  Bg4 {[%clk 0:02:50]} 6. c3 {[%clk 0:02:57]}  a6 {[%clk 0:02:48]} 7. Bxc6+ {[%clk 0:02:57]}  bxc6 {[%clk 0:02:49]} 8. h3 {[%clk 0:02:56]}  Bh5 {[%clk 0:02:48]} 9. d4 {[%clk 0:02:46]}  cxd4 {[%clk 0:02:47]} 10. cxd4 {[%clk 0:02:47]}  Qc7 {[%clk 0:02:41]} 11. Nc3 {[%clk 0:02:43]}  e6 {[%clk 0:02:40]} 12. d5 {[%clk 0:02:35]}  e5 {[%clk 0:02:36]} 13. Bg5 {[%clk 0:02:20]}  Be7 {[%clk 0:02:33]} 14. dxc6 {[%clk 0:02:18]}  Qxc6 {[%clk 0:02:33]} 15. Bxf6 {[%clk 0:02:18]}  Bxf6 {[%clk 0:02:29]} 16. Nd5 {[%clk 0:02:18]}  O-O {[%clk 0:02:13]} 17. Rc1 {[%clk 0:02:17]}  Qd7 {[%clk 0:02:04]} 18. Nb6 {[%clk 0:02:04]}  Qe6 {[%clk 0:01:55]} 19. Nxa8 {[%clk 0:01:56]}  Rxa8 {[%clk 0:01:56]} 20. Qd5 {[%clk 0:01:36]}  Qxd5 {[%clk 0:01:51]} 21. exd5 {[%clk 0:01:36]}  Bxf3 {[%clk 0:01:47]} 22. gxf3 {[%clk 0:01:37]}  Rb8 {[%clk 0:01:40]} 23. Rc6 {[%clk 0:01:35]}  Be7 {[%clk 0:01:39]} 24. Rxa6 {[%clk 0:01:26]}  Rxb2 {[%clk 0:01:38]} 25. Ra8+ {[%clk 0:01:25]}  Bf8 {[%clk 0:01:37]} 26. Rc1 {[%clk 0:01:25]} 1-0


[Site "https://www.chess.com"]

[Event "Titled Tuesday Blitz March 22 Early 2022"]
[White "Van den Dikkenberg, Erik"]
[Black "Melikhov, Evgeny V."]
[WhiteFideId "1005880"]
[BlackFideId "4122046"]
[WhiteElo "2118"]
[BlackElo "1945"]
[Result "0-1"]
[Round "06"]
[TimeControl "180+1"]
[Date "2022.03.22"]
[WhiteClock "0:01:47"]
[BlackClock "0:02:13"]

1. e4 {[%clk 0:03:00]}  c5 {[%clk 0:02:59]} 2. Nc3 {[%clk 0:03:00]}  Nc6 {[%clk 0:02:55]} 3. f4 {[%clk 0:03:01]}  g6 {[%clk 0:02:54]} 4. Nf3 {[%clk 0:03:02]}  Bg7 {[%clk 0:02:54]} 5. Bc4 {[%clk 0:03:02]}  e6 {[%clk 0:02:54]} 6. O-O {[%clk 0:03:03]}  Nge7 {[%clk 0:02:54]} 7. d3 {[%clk 0:03:02]}  O-O {[%clk 0:02:54]} 8. a4 {[%clk 0:03:02]}  d5 {[%clk 0:02:52]} 9. Ba2 {[%clk 0:03:00]}  d4 {[%clk 0:02:49]} 10. Ne2 {[%clk 0:02:58]}  e5 {[%clk 0:02:47]} 11. f5 {[%clk 0:02:50]}  gxf5 {[%clk 0:02:45]} 12. Bg5 {[%clk 0:02:50]}  f4 {[%clk 0:02:43]} 13. Qe1 {[%clk 0:02:49]}  Qd6 {[%clk 0:02:40]} 14. Qh4 {[%clk 0:02:41]}  Ng6 {[%clk 0:02:37]} 15. Qh5 {[%clk 0:02:41]}  Be6 {[%clk 0:02:36]} 16. Bxe6 {[%clk 0:02:32]}  Qxe6 {[%clk 0:02:34]} 17. c4 {[%clk 0:02:23]}  f5 {[%clk 0:02:29]} 18. exf5 {[%clk 0:02:15]}  Rxf5 {[%clk 0:02:27]} 19. Nh4 {[%clk 0:02:16]}  Nxh4 {[%clk 0:02:23]} 20. Qxh4 {[%clk 0:02:13]}  h6 {[%clk 0:02:20]} 21. Qh3 {[%clk 0:01:49]}  hxg5 {[%clk 0:02:19]} 22. Ng3 {[%clk 0:01:50]}  Raf8 {[%clk 0:02:17]} 23. Rae1 {[%clk 0:01:47]}  R5f6 {[%clk 0:02:13]} 0-1


[Site "https://www.chess.com"]

[Event "Titled Tuesday Blitz March 22 Early 2022"]
[White "Vokhidov, Shamsiddin"]
[Black "Urazayev, Arystanbek"]
[WhiteFideId "14204223"]
[BlackFideId "13709810"]
[WhiteElo "2611"]
[BlackElo "2393"]
[Result "1-0"]
[Round "06"]
[TimeControl "180+1"]
[Date "2022.03.22"]
[WhiteClock "0:00:18"]
[BlackClock "0:00:31"]

1. e4 {[%clk 0:03:00]}  c6 {[%clk 0:02:59]} 2. Nf3 {[%clk 0:03:00]}  d5 {[%clk 0:03:00]} 3. d3 {[%clk 0:03:00]}  Qc7 {[%clk 0:02:56]} 4. Nc3 {[%clk 0:02:58]}  dxe4 {[%clk 0:02:56]} 5. Nxe4 {[%clk 0:02:57]}  Nf6 {[%clk 0:02:56]} 6. Nxf6+ {[%clk 0:02:56]}  exf6 {[%clk 0:02:56]} 7. g3 {[%clk 0:02:54]}  Bd6 {[%clk 0:02:53]} 8. Bg2 {[%clk 0:02:54]}  O-O {[%clk 0:02:54]} 9. O-O {[%clk 0:02:54]}  Bg4 {[%clk 0:02:53]} 10. h3 {[%clk 0:02:54]}  Bh5 {[%clk 0:02:54]} 11. c3 {[%clk 0:02:50]}  Nd7 {[%clk 0:02:54]} 12. d4 {[%clk 0:02:50]}  Rfe8 {[%clk 0:02:55]} 13. Re1 {[%clk 0:02:45]}  Bxf3 {[%clk 0:02:35]} 14. Rxe8+ {[%clk 0:02:28]}  Rxe8 {[%clk 0:02:33]} 15. Bxf3 {[%clk 0:02:22]}  Bxg3 {[%clk 0:02:24]} 16. fxg3 {[%clk 0:02:23]}  Qxg3+ {[%clk 0:02:24]} 17. Kf1 {[%clk 0:02:24]}  Qxh3+ {[%clk 0:02:19]} 18. Bg2 {[%clk 0:02:24]}  Qh4 {[%clk 0:02:12]} 19. Bd2 {[%clk 0:02:21]}  Nb6 {[%clk 0:02:11]} 20. b3 {[%clk 0:02:18]}  Nd5 {[%clk 0:02:10]} 21. Qf3 {[%clk 0:02:16]}  g6 {[%clk 0:01:41]} 22. Qf2 {[%clk 0:02:06]}  Qh5 {[%clk 0:01:30]} 23. c4 {[%clk 0:01:54]}  Nc7 {[%clk 0:01:22]} 24. Re1 {[%clk 0:01:54]}  Rxe1+ {[%clk 0:01:20]} 25. Kxe1 {[%clk 0:01:54]}  Kg7 {[%clk 0:01:17]} 26. Bc3 {[%clk 0:01:41]}  Qg5 {[%clk 0:01:12]} 27. Kd1 {[%clk 0:01:30]}  Ne6 {[%clk 0:01:06]} 28. d5 {[%clk 0:01:10]}  cxd5 {[%clk 0:01:05]} 29. Bxd5 {[%clk 0:00:55]}  b6 {[%clk 0:01:05]} 30. Qf3 {[%clk 0:00:44]}  h5 {[%clk 0:00:45]} 31. Bxe6 {[%clk 0:00:40]}  fxe6 {[%clk 0:00:46]} 32. Qb7+ {[%clk 0:00:40]}  Kg8 {[%clk 0:00:44]} 33. Qc8+ {[%clk 0:00:40]}  Kh7 {[%clk 0:00:44]} 34. Qd7+ {[%clk 0:00:40]}  Kg8 {[%clk 0:00:45]} 35. Qxe6+ {[%clk 0:00:39]}  Kg7 {[%clk 0:00:41]} 36. Qe7+ {[%clk 0:00:38]}  Kg8 {[%clk 0:00:41]} 37. Qxf6 {[%clk 0:00:27]}  Qxf6 {[%clk 0:00:40]} 38. Bxf6 {[%clk 0:00:26]}  Kf7 {[%clk 0:00:41]} 39. Bd8 {[%clk 0:00:24]}  Ke6 {[%clk 0:00:41]} 40. Ke2 {[%clk 0:00:24]}  Kf5 {[%clk 0:00:40]} 41. Kf3 {[%clk 0:00:22]}  g5 {[%clk 0:00:41]} 42. b4 {[%clk 0:00:22]}  h4 {[%clk 0:00:41]} 43. Ke3 {[%clk 0:00:20]}  h3 {[%clk 0:00:37]} 44. Bc7 {[%clk 0:00:19]}  Ke6 {[%clk 0:00:38]} 45. Bg3 {[%clk 0:00:18]}  Kf5 {[%clk 0:00:37]} 46. Bh2 {[%clk 0:00:17]}  Ke6 {[%clk 0:00:37]} 47. Ke4 {[%clk 0:00:17]}  a6 {[%clk 0:00:32]} 48. a3 {[%clk 0:00:17]}  a5 {[%clk 0:00:31]} 49. bxa5 {[%clk 0:00:17]}  bxa5 {[%clk 0:00:31]} 50. a4 {[%clk 0:00:18]}  Kd7 {[%clk 0:00:30]} 51. Kd5 {[%clk 0:00:18]}  g4 {[%clk 0:00:30]} 52. c5 {[%clk 0:00:18]}  Kc8 {[%clk 0:00:31]} 53. c6 {[%clk 0:00:18]} 1-0


[Site "https://www.chess.com"]

[Event "Titled Tuesday Blitz March 22 Early 2022"]
[White "Xu, Yi"]
[Black "Martinez Alcantara, Jose Eduardo"]
[WhiteFideId "8605564"]
[BlackFideId "3805662"]
[WhiteElo "2471"]
[BlackElo "2690"]
[Result "0-1"]
[Round "06"]
[TimeControl "180+1"]
[Date "2022.03.22"]
[WhiteClock "0:00:03"]
[BlackClock "0:00:05"]

1. e4 {[%clk 0:03:00]}  c5 {[%clk 0:02:55]} 2. Nf3 {[%clk 0:03:00]}  d6 {[%clk 0:02:55]} 3. d4 {[%clk 0:03:01]}  cxd4 {[%clk 0:02:56]} 4. Nxd4 {[%clk 0:03:01]}  Nf6 {[%clk 0:02:57]} 5. Nc3 {[%clk 0:03:02]}  Nc6 {[%clk 0:02:58]} 6. Bg5 {[%clk 0:03:01]}  e6 {[%clk 0:02:59]} 7. Qd2 {[%clk 0:03:01]}  a6 {[%clk 0:02:59]} 8. O-O-O {[%clk 0:02:58]}  Bd7 {[%clk 0:03:00]} 9. f4 {[%clk 0:02:56]}  Be7 {[%clk 0:03:00]} 10. Bxf6 {[%clk 0:02:55]}  Bxf6 {[%clk 0:02:38]} 11. Nf3 {[%clk 0:02:55]}  Be7 {[%clk 0:02:37]} 12. Kb1 {[%clk 0:02:52]}  Qc7 {[%clk 0:02:37]} 13. Bd3 {[%clk 0:02:50]}  O-O-O {[%clk 0:02:37]} 14. Rhe1 {[%clk 0:02:49]}  Kb8 {[%clk 0:02:38]} 15. Nd5 {[%clk 0:02:44]}  exd5 {[%clk 0:02:35]} 16. exd5 {[%clk 0:02:44]}  Bf6 {[%clk 0:02:35]} 17. dxc6 {[%clk 0:02:44]}  Bxc6 {[%clk 0:02:32]} 18. Be4 {[%clk 0:02:39]}  d5 {[%clk 0:02:28]} 19. Bd3 {[%clk 0:02:39]}  Rhe8 {[%clk 0:02:27]} 20. g3 {[%clk 0:02:31]}  h6 {[%clk 0:01:45]} 21. c3 {[%clk 0:02:13]}  Rxe1 {[%clk 0:01:25]} 22. Rxe1 {[%clk 0:02:03]}  d4 {[%clk 0:01:25]} 23. Nxd4 {[%clk 0:02:00]}  Bxd4 {[%clk 0:01:26]} 24. cxd4 {[%clk 0:02:01]}  Rxd4 {[%clk 0:01:27]} 25. Qc3 {[%clk 0:01:54]}  Qd6 {[%clk 0:01:21]} 26. Bc2 {[%clk 0:01:53]}  f6 {[%clk 0:01:09]} 27. Kc1 {[%clk 0:01:47]}  Qd5 {[%clk 0:00:58]} 28. Bb3 {[%clk 0:01:35]}  Qd7 {[%clk 0:00:58]} 29. Rd1 {[%clk 0:01:24]}  Rxd1+ {[%clk 0:00:58]} 30. Bxd1 {[%clk 0:01:25]}  Qd5 {[%clk 0:00:57]} 31. Qb3 {[%clk 0:01:05]}  Qc5+ {[%clk 0:00:46]} 32. Qc2 {[%clk 0:00:53]}  Qd5 {[%clk 0:00:42]} 33. Qb3 {[%clk 0:00:53]}  Qc5+ {[%clk 0:00:42]} 34. Qc2 {[%clk 0:00:53]}  Qa5 {[%clk 0:00:43]} 35. a3 {[%clk 0:00:47]}  Kc7 {[%clk 0:00:44]} 36. Qe2 {[%clk 0:00:38]}  Qc5+ {[%clk 0:00:44]} 37. Kb1 {[%clk 0:00:36]}  a5 {[%clk 0:00:41]} 38. Bb3 {[%clk 0:00:35]}  Kb6 {[%clk 0:00:32]} 39. Qc2 {[%clk 0:00:29]}  Bf3 {[%clk 0:00:19]} 40. Qd2 {[%clk 0:00:23]}  Bc6 {[%clk 0:00:19]} 41. Qc2 {[%clk 0:00:20]}  Qd4 {[%clk 0:00:20]} 42. Ka2 {[%clk 0:00:19]}  g5 {[%clk 0:00:17]} 43. fxg5 {[%clk 0:00:18]}  fxg5 {[%clk 0:00:18]} 44. Qg6 {[%clk 0:00:16]}  a4 {[%clk 0:00:17]} 45. Bf7 {[%clk 0:00:15]}  Qd7 {[%clk 0:00:11]} 46. Bc4 {[%clk 0:00:11]}  Qd4 {[%clk 0:00:10]} 47. Bf7 {[%clk 0:00:11]}  Qf2 {[%clk 0:00:09]} 48. Bd5 {[%clk 0:00:07]}  Qxh2 {[%clk 0:00:08]} 49. Bxc6 {[%clk 0:00:07]}  bxc6 {[%clk 0:00:09]} 50. Qd6 {[%clk 0:00:07]}  Qe2 {[%clk 0:00:04]} 51. Qxh6 {[%clk 0:00:04]}  Qc4+ {[%clk 0:00:03]} 52. Ka1 {[%clk 0:00:04]}  Qc1+ {[%clk 0:00:03]} 53. Ka2 {[%clk 0:00:05]}  Qe3 {[%clk 0:00:03]} 54. Qd6 {[%clk 0:00:04]}  Qb3+ {[%clk 0:00:02]} 55. Ka1 {[%clk 0:00:04]}  Qb5 {[%clk 0:00:02]} 56. Qd4+ {[%clk 0:00:04]}  Ka6 {[%clk 0:00:02]} 57. Qc3 {[%clk 0:00:04]}  Qd5 {[%clk 0:00:02]} 58. Kb1 {[%clk 0:00:04]}  c5 {[%clk 0:00:03]} 59. Ka1 {[%clk 0:00:03]}  Kb5 {[%clk 0:00:03]} 60. Kb1 {[%clk 0:00:03]}  Qe4+ {[%clk 0:00:04]} 61. Ka2 {[%clk 0:00:03]}  Qd5+ {[%clk 0:00:04]} 62. Kb1 {[%clk 0:00:03]}  c4 {[%clk 0:00:05]} 0-1


[Site "https://www.chess.com"]